[Event "Titled Tuesday Blitz April 18 Early 2023"]
[White "Khromkin, Andrey"]
[Black "Iliaguev, Nisim"]
[WhiteFideId "4154126"]
[BlackFideId "2817276"]
[WhiteElo "2384"]
[BlackElo "2241"]
[Result "0-1"]
[Round "01"]
[TimeControl "180+2"]
[Date "2023.04.18"]
[WhiteClock "0:00:05"]
[BlackClock "0:00:18"]

1. d4 {[%clk 0:02:59]}  Nf6 {[%clk 0:02:56]} 2. c4 {[%clk 0:02:58]}  e6 {[%clk 0:02:56]} 3. Nf3 {[%clk 0:02:58]}  Bb4+ {[%clk 0:02:57]} 4. Bd2 {[%clk 0:02:58]}  Qe7 {[%clk 0:02:57]} 5. g3 {[%clk 0:02:58]}  O-O {[%clk 0:02:58]} 6. Bg2 {[%clk 0:02:58]}  Bxd2+ {[%clk 0:02:57]} 7. Qxd2 {[%clk 0:02:56]}  d6 {[%clk 0:02:57]} 8. Nc3 {[%clk 0:02:55]}  e5 {[%clk 0:02:57]} 9. O-O {[%clk 0:02:55]}  Nc6 {[%clk 0:02:54]} 10. Nd5 {[%clk 0:02:55]}  Nxd5 {[%clk 0:02:52]} 11. cxd5 {[%clk 0:02:55]}  Nxd4 {[%clk 0:02:53]} 12. Nxd4 {[%clk 0:02:55]}  exd4 {[%clk 0:02:54]} 13. Rac1 {[%clk 0:02:55]}  c5 {[%clk 0:02:36]} 14. dxc6 {[%clk 0:02:52]}  bxc6 {[%clk 0:02:37]} 15. Bxc6 {[%clk 0:02:49]}  Rb8 {[%clk 0:02:36]} 16. Rfe1 {[%clk 0:02:35]}  Qe5 {[%clk 0:02:23]} 17. b3 {[%clk 0:02:17]}  a5 {[%clk 0:02:10]} 18. Rc4 {[%clk 0:02:10]}  Rb4 {[%clk 0:01:50]} 19. Rxb4 {[%clk 0:02:05]}  axb4 {[%clk 0:01:51]} 20. Qxb4 {[%clk 0:01:53]}  Ba6 {[%clk 0:01:48]} 21. Bf3 {[%clk 0:01:36]}  h5 {[%clk 0:01:44]} 22. Qd2 {[%clk 0:01:31]}  Rc8 {[%clk 0:01:27]} 23. Rd1 {[%clk 0:01:24]}  h4 {[%clk 0:01:16]} 24. Qxd4 {[%clk 0:01:15]}  Rc1 {[%clk 0:01:10]} 25. e3 {[%clk 0:00:54]}  Qxd4 {[%clk 0:00:35]} 26. exd4 {[%clk 0:00:53]}  Rc2 {[%clk 0:00:36]} 27. Ra1 {[%clk 0:00:31]}  hxg3 {[%clk 0:00:32]} 28. hxg3 {[%clk 0:00:30]}  Rd2 {[%clk 0:00:33]} 29. d5 {[%clk 0:00:27]}  g5 {[%clk 0:00:30]} 30. Bg2 {[%clk 0:00:22]}  f5 {[%clk 0:00:29]} 31. Bf1 {[%clk 0:00:21]}  Bb7 {[%clk 0:00:29]} 32. Bc4 {[%clk 0:00:19]}  Kg7 {[%clk 0:00:28]} 33. a4 {[%clk 0:00:19]}  Kf6 {[%clk 0:00:25]} 34. a5 {[%clk 0:00:19]}  Ke5 {[%clk 0:00:25]} 35. a6 {[%clk 0:00:19]}  Ba8 {[%clk 0:00:25]} 36. a7 {[%clk 0:00:19]}  Kd4 {[%clk 0:00:21]} 37. Ra5 {[%clk 0:00:05]}  f4 {[%clk 0:00:18]} 0-1


[Site "https://www.chess.com"]

[Event "Titled Tuesday Blitz April 18 Early 2023"]
[White "Korchmar, Vasiliy"]
[Black "Andreev, Konstantin"]
[WhiteFideId "24131750"]
[BlackFideId "24239305"]
[WhiteElo "2370"]
[BlackElo "2106"]
[Result "1-0"]
[Round "01"]
[TimeControl "180+2"]
[Date "2023.04.18"]
[WhiteClock "0:00:48"]
[BlackClock "0:01:01"]

1. e4 {[%clk 0:03:00]}  c5 {[%clk 0:02:56]} 2. Nf3 {[%clk 0:03:00]}  e6 {[%clk 0:02:54]} 3. g3 {[%clk 0:03:00]}  Nc6 {[%clk 0:02:55]} 4. Bg2 {[%clk 0:03:00]}  g6 {[%clk 0:02:55]} 5. O-O {[%clk 0:02:59]}  Bg7 {[%clk 0:02:55]} 6. c3 {[%clk 0:02:56]}  Nge7 {[%clk 0:02:55]} 7. d4 {[%clk 0:02:55]}  cxd4 {[%clk 0:02:55]} 8. cxd4 {[%clk 0:02:56]}  d6 {[%clk 0:02:55]} 9. Nc3 {[%clk 0:02:56]}  O-O {[%clk 0:02:55]} 10. Be3 {[%clk 0:02:50]}  a6 {[%clk 0:02:49]} 11. Qd2 {[%clk 0:02:44]}  b5 {[%clk 0:02:47]} 12. Bh6 {[%clk 0:02:45]}  Bb7 {[%clk 0:02:38]} 13. d5 {[%clk 0:02:27]}  exd5 {[%clk 0:02:31]} 14. Bxg7 {[%clk 0:02:24]}  Kxg7 {[%clk 0:02:29]} 15. exd5 {[%clk 0:02:23]}  Ne5 {[%clk 0:02:22]} 16. Nxe5 {[%clk 0:02:11]}  dxe5 {[%clk 0:02:23]} 17. d6 {[%clk 0:02:11]}  Nc6 {[%clk 0:02:23]} 18. Rad1 {[%clk 0:01:53]}  Rc8 {[%clk 0:02:13]} 19. h4 {[%clk 0:01:47]}  h5 {[%clk 0:02:12]} 20. Rfe1 {[%clk 0:01:42]}  Qd7 {[%clk 0:02:01]} 21. Qe3 {[%clk 0:01:23]}  f6 {[%clk 0:01:53]} 22. Nd5 {[%clk 0:01:11]}  Rcd8 {[%clk 0:01:26]} 23. Nb6 {[%clk 0:01:05]}  Qe6 {[%clk 0:01:22]} 24. Qc5 {[%clk 0:01:00]}  Nd4 {[%clk 0:01:02]} 25. Qxd4 {[%clk 0:00:48]}  Bxg2 {[%clk 0:01:01]} 26. Kxg2 {[%clk 0:00:48]} 1-0


[Site "https://www.chess.com"]

[Event "Titled Tuesday Blitz April 18 Early 2023"]
[White "Leve, Nitai"]
[Black "Jaferian, Koosha"]
[WhiteFideId "2006898"]
[BlackFideId "12507440"]
[WhiteElo "2144"]
[BlackElo "2073"]
[Result "0-1"]
[Round "01"]
[TimeControl "180+2"]
[Date "2023.04.18"]
[WhiteClock "0:00:06"]
[BlackClock "0:00:19"]

1. e4 {[%clk 0:03:00]}  c6 {[%clk 0:02:58]} 2. d4 {[%clk 0:03:00]}  d5 {[%clk 0:02:59]} 3. exd5 {[%clk 0:02:59]}  cxd5 {[%clk 0:03:00]} 4. c4 {[%clk 0:03:00]}  Nf6 {[%clk 0:03:00]} 5. Nc3 {[%clk 0:03:00]}  Nc6 {[%clk 0:03:01]} 6. Nf3 {[%clk 0:03:00]}  Bg4 {[%clk 0:03:00]} 7. cxd5 {[%clk 0:03:00]}  Nxd5 {[%clk 0:03:01]} 8. Qb3 {[%clk 0:03:00]}  Bxf3 {[%clk 0:03:01]} 9. gxf3 {[%clk 0:03:01]}  e6 {[%clk 0:03:02]} 10. Qxb7 {[%clk 0:03:01]}  Nxd4 {[%clk 0:03:02]} 11. Bb5+ {[%clk 0:03:01]}  Nxb5 {[%clk 0:03:03]} 12. Qc6+ {[%clk 0:03:01]}  Ke7 {[%clk 0:03:04]} 13. Qxb5 {[%clk 0:02:43]}  Nxc3 {[%clk 0:02:56]} 14. bxc3 {[%clk 0:02:42]}  Rb8 {[%clk 0:02:57]} 15. Qc5+ {[%clk 0:02:35]}  Ke8 {[%clk 0:02:56]} 16. Qxa7 {[%clk 0:02:21]}  Bd6 {[%clk 0:02:55]} 17. Qa4+ {[%clk 0:02:17]}  Ke7 {[%clk 0:02:48]} 18. O-O {[%clk 0:02:14]}  Qc7 {[%clk 0:02:47]} 19. h3 {[%clk 0:02:06]}  Qxc3 {[%clk 0:02:37]} 20. Be3 {[%clk 0:01:56]}  Qe5 {[%clk 0:02:24]} 21. f4 {[%clk 0:01:52]}  Qh5 {[%clk 0:02:18]} 22. Qa7+ {[%clk 0:01:33]}  Kf6 {[%clk 0:02:16]} 23. Rfd1 {[%clk 0:01:24]}  Rbd8 {[%clk 0:01:54]} 24. Qd4+ {[%clk 0:00:44]}  Kg6 {[%clk 0:01:53]} 25. Qe4+ {[%clk 0:00:44]}  Qf5 {[%clk 0:01:49]} 26. Qg2+ {[%clk 0:00:40]}  Kh6 {[%clk 0:01:45]} 27. Qg5+ {[%clk 0:00:34]}  Qxg5+ {[%clk 0:01:42]} 28. fxg5+ {[%clk 0:00:35]}  Kg6 {[%clk 0:01:43]} 29. a4 {[%clk 0:00:31]}  Be5 {[%clk 0:01:37]} 30. Rxd8 {[%clk 0:00:30]}  Rxd8 {[%clk 0:01:38]} 31. Ra2 {[%clk 0:00:30]}  Rd6 {[%clk 0:01:29]} 32. a5 {[%clk 0:00:29]}  Ra6 {[%clk 0:01:29]} 33. Kg2 {[%clk 0:00:23]}  Bc3 {[%clk 0:01:29]} 34. Rc2 {[%clk 0:00:11]}  Bb4 {[%clk 0:01:16]} 35. Rb2 {[%clk 0:00:11]}  Be1 {[%clk 0:01:09]} 36. Re2 {[%clk 0:00:10]}  Bc3 {[%clk 0:00:57]} 37. Rc2 {[%clk 0:00:10]}  Bb4 {[%clk 0:00:53]} 38. Rb2 {[%clk 0:00:10]}  Be7 {[%clk 0:00:54]} 39. Rb5 {[%clk 0:00:06]}  Kh5 {[%clk 0:00:48]} 40. Kg3 {[%clk 0:00:04]}  Bd6+ {[%clk 0:00:48]} 41. f4 {[%clk 0:00:04]}  Rc6 {[%clk 0:00:45]} 42. Rb6 {[%clk 0:00:04]}  Rc3 {[%clk 0:00:43]} 43. Rxd6 {[%clk 0:00:04]}  Rxe3+ {[%clk 0:00:43]} 44. Kf2 {[%clk 0:00:05]}  Rxh3 {[%clk 0:00:41]} 45. a6 {[%clk 0:00:05]}  Ra3 {[%clk 0:00:42]} 46. Rd7 {[%clk 0:00:05]}  Kg6 {[%clk 0:00:42]} 47. a7 {[%clk 0:00:05]}  f6 {[%clk 0:00:36]} 48. gxf6 {[%clk 0:00:05]}  gxf6 {[%clk 0:00:37]} 49. Rb7 {[%clk 0:00:06]}  h5 {[%clk 0:00:35]} 50. Kg2 {[%clk 0:00:06]}  Kf5 {[%clk 0:00:35]} 51. Rh7 {[%clk 0:00:03]}  Kxf4 {[%clk 0:00:33]} 52. Rf7 {[%clk 0:00:03]}  f5 {[%clk 0:00:32]} 53. Kf2 {[%clk 0:00:04]}  Ra2+ {[%clk 0:00:32]} 54. Ke1 {[%clk 0:00:04]}  e5 {[%clk 0:00:31]} 55. Kd1 {[%clk 0:00:04]}  e4 {[%clk 0:00:31]} 56. Kc1 {[%clk 0:00:04]}  e3 {[%clk 0:00:27]} 57. Kb1 {[%clk 0:00:05]}  e2 {[%clk 0:00:27]} 58. Kxa2 {[%clk 0:00:04]}  e1=Q {[%clk 0:00:26]} 59. a8=Q {[%clk 0:00:05]}  Qe6+ {[%clk 0:00:26]} 60. Kb2 {[%clk 0:00:05]}  Qxf7 {[%clk 0:00:26]} 61. Qb8+ {[%clk 0:00:05]}  Kg5 {[%clk 0:00:23]} 62. Qg3+ {[%clk 0:00:05]}  Kh6 {[%clk 0:00:20]} 63. Qf4+ {[%clk 0:00:05]}  Kg6 {[%clk 0:00:18]} 64. Qg3+ {[%clk 0:00:05]}  Kh7 {[%clk 0:00:19]} 65. Kc2 {[%clk 0:00:05]}  f4 {[%clk 0:00:17]} 66. Qf3 {[%clk 0:00:04]}  Qf5+ {[%clk 0:00:17]} 67. Kc1 {[%clk 0:00:04]}  Kg6 {[%clk 0:00:17]} 68. Qc6+ {[%clk 0:00:04]}  Kg5 {[%clk 0:00:18]} 69. Qg2+ {[%clk 0:00:03]}  Qg4 {[%clk 0:00:18]} 70. Qd5+ {[%clk 0:00:04]}  Kh4 {[%clk 0:00:19]} 71. Qe5 {[%clk 0:00:03]}  Qg1+ {[%clk 0:00:17]} 72. Kd2 {[%clk 0:00:04]}  Qe3+ {[%clk 0:00:18]} 73. Qxe3 {[%clk 0:00:04]}  fxe3+ {[%clk 0:00:18]} 74. Ke2 {[%clk 0:00:04]}  Kg3 {[%clk 0:00:18]} 75. Kxe3 {[%clk 0:00:04]}  h4 {[%clk 0:00:18]} 76. Ke2 {[%clk 0:00:05]}  Kg2 {[%clk 0:00:18]} 77. Ke1 {[%clk 0:00:06]}  h3 {[%clk 0:00:19]} 0-1


[Site "https://www.chess.com"]

[Event "Titled Tuesday Blitz April 18 Early 2023"]
[White "Bilych, Olexiy"]
[Black "Akylbek2021"]
[WhiteFideId "14156504"]
[WhiteElo "2320"]
[BlackElo "2372"]
[Result "0-1"]
[Round "01"]
[TimeControl "180+2"]
[Date "2023.04.18"]
[WhiteClock "0:00:04"]
[BlackClock "0:00:43"]

1. Nf3 {[%clk 0:02:59]}  Nf6 {[%clk 0:02:59]} 2. c4 {[%clk 0:02:59]}  c5 {[%clk 0:02:58]} 3. Nc3 {[%clk 0:02:56]}  g6 {[%clk 0:02:59]} 4. d4 {[%clk 0:02:55]}  cxd4 {[%clk 0:02:58]} 5. Nxd4 {[%clk 0:02:56]}  Bg7 {[%clk 0:02:58]} 6. e4 {[%clk 0:02:56]}  d6 {[%clk 0:02:58]} 7. Be2 {[%clk 0:02:55]}  O-O {[%clk 0:02:58]} 8. O-O {[%clk 0:02:55]}  Nc6 {[%clk 0:02:59]} 9. Be3 {[%clk 0:02:56]}  Bd7 {[%clk 0:02:57]} 10. h3 {[%clk 0:02:55]}  Qa5 {[%clk 0:02:49]} 11. Nb3 {[%clk 0:02:43]}  Qd8 {[%clk 0:02:44]} 12. Qd2 {[%clk 0:02:32]}  Rc8 {[%clk 0:02:44]} 13. Rac1 {[%clk 0:02:30]}  Ne5 {[%clk 0:02:36]} 14. c5 {[%clk 0:02:27]}  Bc6 {[%clk 0:02:10]} 15. cxd6 {[%clk 0:02:21]}  exd6 {[%clk 0:02:11]} 16. f4 {[%clk 0:02:15]}  Ned7 {[%clk 0:02:07]} 17. Qxd6 {[%clk 0:01:52]}  Nxe4 {[%clk 0:01:39]} 18. Nxe4 {[%clk 0:01:52]}  Bxe4 {[%clk 0:01:40]} 19. Rxc8 {[%clk 0:01:52]}  Qxc8 {[%clk 0:01:40]} 20. Rc1 {[%clk 0:01:53]}  Bc6 {[%clk 0:01:28]} 21. Nd4 {[%clk 0:01:49]}  Qe8 {[%clk 0:01:23]} 22. Kf2 {[%clk 0:01:41]}  Nf6 {[%clk 0:01:22]} 23. Bf3 {[%clk 0:01:23]}  Bxf3 {[%clk 0:01:16]} 24. gxf3 {[%clk 0:01:24]}  Qa4 {[%clk 0:01:02]} 25. a3 {[%clk 0:01:15]}  Re8 {[%clk 0:00:58]} 26. b3 {[%clk 0:00:57]}  Qa5 {[%clk 0:00:52]} 27. Qc5 {[%clk 0:00:58]}  Qd8 {[%clk 0:00:51]} 28. Nb5 {[%clk 0:00:44]}  Nd5 {[%clk 0:00:49]} 29. Bd2 {[%clk 0:00:04]}  Qh4+ {[%clk 0:00:48]} 30. Kf1 {[%clk 0:00:03]}  Qxh3+ {[%clk 0:00:48]} 31. Kf2 {[%clk 0:00:04]}  Qh2+ {[%clk 0:00:47]} 32. Kf1 {[%clk 0:00:04]}  Qxd2 {[%clk 0:00:44]} 33. Nd6 {[%clk 0:00:05]}  Ne3+ {[%clk 0:00:44]} 34. Kg1 {[%clk 0:00:04]}  Qg2# {[%clk 0:00:43]} 0-1


[Site "https://www.chess.com"]

[Event "Titled Tuesday Blitz April 18 Early 2023"]
[White "Rangel, Daniel"]
[Black "Nouri, Alekhine"]
[WhiteFideId "2124475"]
[BlackFideId "5216184"]
[WhiteElo "2256"]
[BlackElo "2151"]
[Result "0-1"]
[Round "01"]
[TimeControl "180+2"]
[Date "2023.04.18"]
[WhiteClock "0:00:03"]
[BlackClock "0:01:41"]

1. c4 {[%clk 0:02:59]}  g6 {[%clk 0:02:57]} 2. Nc3 {[%clk 0:02:58]}  Bg7 {[%clk 0:02:54]} 3. g3 {[%clk 0:02:57]}  c5 {[%clk 0:02:52]} 4. Bg2 {[%clk 0:02:57]}  Nc6 {[%clk 0:02:52]} 5. e3 {[%clk 0:02:58]}  Nf6 {[%clk 0:02:35]} 6. Nge2 {[%clk 0:02:58]}  O-O {[%clk 0:02:35]} 7. O-O {[%clk 0:02:57]}  Rb8 {[%clk 0:02:34]} 8. d4 {[%clk 0:02:55]}  cxd4 {[%clk 0:02:35]} 9. exd4 {[%clk 0:02:55]}  d6 {[%clk 0:02:36]} 10. d5 {[%clk 0:02:53]}  Ne5 {[%clk 0:02:36]} 11. b3 {[%clk 0:02:54]}  a6 {[%clk 0:02:34]} 12. Bb2 {[%clk 0:02:51]}  b5 {[%clk 0:02:35]} 13. cxb5 {[%clk 0:02:49]}  axb5 {[%clk 0:02:35]} 14. Nd4 {[%clk 0:02:43]}  b4 {[%clk 0:02:35]} 15. Nce2 {[%clk 0:02:34]}  Bb7 {[%clk 0:02:35]} 16. Nc6 {[%clk 0:02:31]}  Bxc6 {[%clk 0:02:35]} 17. dxc6 {[%clk 0:02:32]}  Qc7 {[%clk 0:02:35]} 18. Nd4 {[%clk 0:02:30]}  Rb6 {[%clk 0:02:32]} 19. h3 {[%clk 0:02:23]}  d5 {[%clk 0:02:20]} 20. Rc1 {[%clk 0:02:03]}  Ne4 {[%clk 0:02:19]} 21. Qe2 {[%clk 0:01:38]}  Nxc6 {[%clk 0:02:01]} 22. Nxc6 {[%clk 0:01:33]}  Rxc6 {[%clk 0:02:01]} 23. Rxc6 {[%clk 0:01:32]}  Qxc6 {[%clk 0:02:02]} 24. Bxe4 {[%clk 0:01:16]}  dxe4 {[%clk 0:02:01]} 25. Bxg7 {[%clk 0:00:56]}  Kxg7 {[%clk 0:02:02]} 26. Re1 {[%clk 0:00:56]}  f5 {[%clk 0:02:00]} 27. Rd1 {[%clk 0:00:53]}  Rc8 {[%clk 0:01:52]} 28. h4 {[%clk 0:00:47]}  h5 {[%clk 0:01:51]} 29. Qe3 {[%clk 0:00:45]}  Qc2 {[%clk 0:01:47]} 30. Rd7 {[%clk 0:00:41]}  Kf7 {[%clk 0:01:44]} 31. Qh6 {[%clk 0:00:23]}  Qc1+ {[%clk 0:01:43]} 32. Qxc1 {[%clk 0:00:20]}  Rxc1+ {[%clk 0:01:44]} 33. Kg2 {[%clk 0:00:20]}  Rc2 {[%clk 0:01:44]} 34. Kf1 {[%clk 0:00:10]}  Rxa2 {[%clk 0:01:40]} 35. Rb7 {[%clk 0:00:09]}  Rb2 {[%clk 0:01:41]} 36. Rxb4 {[%clk 0:00:03]}  Kf6 {[%clk 0:01:41]} 0-1


[Site "https://www.chess.com"]

[Event "Titled Tuesday Blitz April 18 Early 2023"]
[White "Williams, Simon K"]
[Black "Dwilewicz, Katarzyna"]
[WhiteFideId "404454"]
[BlackFideId "1148486"]
[WhiteElo "2468"]
[BlackElo "2065"]
[Result "1-0"]
[Round "01"]
[TimeControl "180+2"]
[Date "2023.04.18"]
[WhiteClock "0:00:29"]
[BlackClock "0:00:01"]

1. d4 {[%clk 0:03:00]}  d5 {[%clk 0:02:57]} 2. c4 {[%clk 0:02:57]}  dxc4 {[%clk 0:02:56]} 3. Nf3 {[%clk 0:02:55]}  Nf6 {[%clk 0:02:55]} 4. e3 {[%clk 0:02:54]}  Bg4 {[%clk 0:02:53]} 5. Bxc4 {[%clk 0:02:52]}  e6 {[%clk 0:02:53]} 6. h3 {[%clk 0:02:51]}  Bh5 {[%clk 0:02:50]} 7. Qb3 {[%clk 0:02:45]}  Bxf3 {[%clk 0:02:34]} 8. gxf3 {[%clk 0:02:45]}  b6 {[%clk 0:02:29]} 9. Nc3 {[%clk 0:02:40]}  Be7 {[%clk 0:02:28]} 10. f4 {[%clk 0:02:29]}  O-O {[%clk 0:02:24]} 11. Qd1 {[%clk 0:02:29]}  Nbd7 {[%clk 0:02:14]} 12. Qf3 {[%clk 0:02:13]}  c5 {[%clk 0:02:13]} 13. d5 {[%clk 0:02:07]}  exd5 {[%clk 0:02:11]} 14. Nxd5 {[%clk 0:02:06]}  Nxd5 {[%clk 0:02:06]} 15. Bxd5 {[%clk 0:02:05]}  Rc8 {[%clk 0:02:06]} 16. O-O {[%clk 0:02:01]}  Nf6 {[%clk 0:02:05]} 17. Bc4 {[%clk 0:01:58]}  Qc7 {[%clk 0:01:59]} 18. Bd2 {[%clk 0:01:55]}  Ne8 {[%clk 0:01:31]} 19. e4 {[%clk 0:01:42]}  Nd6 {[%clk 0:01:25]} 20. Bd3 {[%clk 0:01:38]}  c4 {[%clk 0:01:22]} 21. Bc2 {[%clk 0:01:37]}  Qc6 {[%clk 0:01:16]} 22. Qg2 {[%clk 0:01:18]}  f5 {[%clk 0:01:04]} 23. e5 {[%clk 0:01:11]}  Ne4 {[%clk 0:00:45]} 24. Bxe4 {[%clk 0:01:10]}  fxe4 {[%clk 0:00:45]} 25. Rfe1 {[%clk 0:01:09]}  Rcd8 {[%clk 0:00:36]} 26. Rad1 {[%clk 0:01:07]}  Rd3 {[%clk 0:00:26]} 27. Bc3 {[%clk 0:00:55]}  Rxf4 {[%clk 0:00:23]} 28. Rxd3 {[%clk 0:00:51]}  cxd3 {[%clk 0:00:22]} 29. Re3 {[%clk 0:00:49]}  Bc5 {[%clk 0:00:15]} 30. Rxd3 {[%clk 0:00:49]}  Bxf2+ {[%clk 0:00:08]} 31. Kh1 {[%clk 0:00:46]}  Bc5 {[%clk 0:00:02]} 32. Rd8+ {[%clk 0:00:43]}  Kf7 {[%clk 0:00:01]} 33. e6+ {[%clk 0:00:40]}  Kxe6 {[%clk 0:00:01]} 34. Bd2 {[%clk 0:00:30]}  e3 {[%clk 0:00:01]} 35. Qxc6+ {[%clk 0:00:29]} 1-0


[Site "https://www.chess.com"]

[Event "Titled Tuesday Blitz April 18 Early 2023"]
[White "mohsengabr2002"]
[Black "Chor, Kevin"]
[BlackFideId "2090740"]
[WhiteElo "2366"]
[BlackElo "2704"]
[Result "0-1"]
[Round "01"]
[TimeControl "180+2"]
[Date "2023.04.18"]
[WhiteClock "0:00:41"]
[BlackClock "0:00:30"]

1. d4 {[%clk 0:02:59]}  Nf6 {[%clk 0:02:59]} 2. c3 {[%clk 0:02:58]}  g6 {[%clk 0:02:59]} 3. Nd2 {[%clk 0:02:56]}  Bg7 {[%clk 0:02:58]} 4. e4 {[%clk 0:02:55]}  O-O {[%clk 0:02:58]} 5. Bd3 {[%clk 0:02:55]}  d6 {[%clk 0:02:58]} 6. Ngf3 {[%clk 0:02:53]}  Nbd7 {[%clk 0:02:57]} 7. O-O {[%clk 0:02:51]}  e5 {[%clk 0:02:53]} 8. d5 {[%clk 0:02:50]}  Nh5 {[%clk 0:02:49]} 9. g3 {[%clk 0:02:48]}  Nc5 {[%clk 0:02:44]} 10. Be2 {[%clk 0:02:46]}  Bh3 {[%clk 0:02:38]} 11. Re1 {[%clk 0:02:43]}  Nf6 {[%clk 0:02:34]} 12. Ng5 {[%clk 0:02:36]}  Bd7 {[%clk 0:02:30]} 13. b4 {[%clk 0:02:36]}  Ba4 {[%clk 0:02:23]} 14. Nb3 {[%clk 0:02:32]}  Ncxe4 {[%clk 0:02:20]} 15. Nxe4 {[%clk 0:02:24]}  Nxe4 {[%clk 0:02:21]} 16. Qd3 {[%clk 0:02:23]}  f5 {[%clk 0:02:16]} 17. Bf3 {[%clk 0:02:21]}  Bxb3 {[%clk 0:01:58]} 18. axb3 {[%clk 0:02:21]}  Nxc3 {[%clk 0:01:58]} 19. Bg2 {[%clk 0:02:05]}  e4 {[%clk 0:01:56]} 20. Qc2 {[%clk 0:02:00]}  Ne2+ {[%clk 0:01:38]} 21. Qxe2 {[%clk 0:01:58]}  Bxa1 {[%clk 0:01:39]} 22. Be3 {[%clk 0:01:48]}  Bg7 {[%clk 0:01:35]} 23. b5 {[%clk 0:01:47]}  a6 {[%clk 0:01:33]} 24. Rc1 {[%clk 0:01:45]}  Qe7 {[%clk 0:01:25]} 25. Bf1 {[%clk 0:01:42]}  g5 {[%clk 0:01:21]} 26. Qd2 {[%clk 0:01:39]}  h6 {[%clk 0:01:13]} 27. bxa6 {[%clk 0:01:39]}  bxa6 {[%clk 0:01:14]} 28. Rc6 {[%clk 0:01:38]}  f4 {[%clk 0:01:10]} 29. gxf4 {[%clk 0:01:34]}  gxf4 {[%clk 0:01:06]} 30. Bxf4 {[%clk 0:01:34]}  Rab8 {[%clk 0:01:01]} 31. Bc4 {[%clk 0:01:28]}  Qf6 {[%clk 0:01:00]} 32. Bg3 {[%clk 0:01:26]}  Rf7 {[%clk 0:00:55]} 33. Rxa6 {[%clk 0:01:22]}  h5 {[%clk 0:00:54]} 34. h4 {[%clk 0:01:19]}  Re8 {[%clk 0:00:54]} 35. Qe3 {[%clk 0:01:10]}  Bh6 {[%clk 0:00:52]} 36. Qe2 {[%clk 0:01:06]}  e3 {[%clk 0:00:51]} 37. fxe3 {[%clk 0:00:56]}  Rxe3 {[%clk 0:00:39]} 38. Qf2 {[%clk 0:00:55]}  Qg6 {[%clk 0:00:33]} 39. Ra8+ {[%clk 0:00:46]}  Kh7 {[%clk 0:00:31]} 40. Qxe3 {[%clk 0:00:42]}  Bxe3+ {[%clk 0:00:31]} 41. Kg2 {[%clk 0:00:43]}  Rf2+ {[%clk 0:00:29]} 42. Kh3 {[%clk 0:00:41]}  Qg4# {[%clk 0:00:30]} 0-1


[Site "https://www.chess.com"]

[Event "Titled Tuesday Blitz April 18 Early 2023"]
[White "Real_taiatai"]
[Black "Amilal Munkhdalai"]
[BlackFideId "4903250"]
[WhiteElo "2365"]
[BlackElo "2293"]
[Result "1/2-1/2"]
[Round "01"]
[TimeControl "180+2"]
[Date "2023.04.18"]
[WhiteClock "0:00:21"]
[BlackClock "0:01:26"]

1. b3 {[%clk 0:02:51]}  e5 {[%clk 0:02:59]} 2. Bb2 {[%clk 0:02:52]}  Nc6 {[%clk 0:03:00]} 3. e3 {[%clk 0:02:52]}  d6 {[%clk 0:03:00]} 4. g3 {[%clk 0:02:52]}  g6 {[%clk 0:03:00]} 5. Bg2 {[%clk 0:02:52]}  Bg7 {[%clk 0:03:00]} 6. Ne2 {[%clk 0:02:52]}  Nge7 {[%clk 0:03:00]} 7. d3 {[%clk 0:02:53]}  O-O {[%clk 0:03:01]} 8. O-O {[%clk 0:02:54]}  Be6 {[%clk 0:03:01]} 9. a3 {[%clk 0:02:52]}  d5 {[%clk 0:03:00]} 10. Nd2 {[%clk 0:02:52]}  f5 {[%clk 0:03:00]} 11. f4 {[%clk 0:02:50]}  e4 {[%clk 0:02:58]} 12. Bxg7 {[%clk 0:02:50]}  Kxg7 {[%clk 0:02:58]} 13. Qc1 {[%clk 0:02:48]}  Ng8 {[%clk 0:02:53]} 14. Qb2+ {[%clk 0:02:42]}  Qf6 {[%clk 0:02:52]} 15. Qxf6+ {[%clk 0:02:27]}  Nxf6 {[%clk 0:02:52]} 16. d4 {[%clk 0:02:24]}  Ng4 {[%clk 0:02:52]} 17. Rfc1 {[%clk 0:02:07]}  Nxe3 {[%clk 0:02:50]} 18. h3 {[%clk 0:02:07]}  Nxg2 {[%clk 0:02:49]} 19. Kxg2 {[%clk 0:02:08]}  Rfd8 {[%clk 0:02:47]} 20. Nf1 {[%clk 0:02:04]}  Rac8 {[%clk 0:02:45]} 21. Ne3 {[%clk 0:02:04]}  Ne7 {[%clk 0:02:45]} 22. b4 {[%clk 0:02:03]}  b6 {[%clk 0:02:44]} 23. Kf2 {[%clk 0:01:55]}  Bd7 {[%clk 0:02:43]} 24. Ke1 {[%clk 0:01:54]}  Bb5 {[%clk 0:02:42]} 25. Kd2 {[%clk 0:01:44]}  c5 {[%clk 0:02:37]} 26. c3 {[%clk 0:01:42]}  Nc6 {[%clk 0:02:30]} 27. Rd1 {[%clk 0:01:26]}  Bxe2 {[%clk 0:02:02]} 28. Kxe2 {[%clk 0:01:26]}  cxd4 {[%clk 0:02:02]} 29. cxd4 {[%clk 0:01:26]}  Kf6 {[%clk 0:02:02]} 30. Rac1 {[%clk 0:01:26]}  Nxd4+ {[%clk 0:02:00]} 31. Kf2 {[%clk 0:01:21]}  Rxc1 {[%clk 0:01:56]} 32. Rxc1 {[%clk 0:01:22]}  Ne6 {[%clk 0:01:56]} 33. Rc6 {[%clk 0:01:17]}  Ke7 {[%clk 0:01:55]} 34. b5 {[%clk 0:01:07]}  Rd6 {[%clk 0:01:51]} 35. Rc8 {[%clk 0:01:06]}  Rd7 {[%clk 0:01:46]} 36. a4 {[%clk 0:01:00]}  Nc5 {[%clk 0:01:38]} 37. a5 {[%clk 0:00:55]}  Nd3+ {[%clk 0:01:38]} 38. Ke2 {[%clk 0:00:54]}  bxa5 {[%clk 0:01:39]} 39. Nc2 {[%clk 0:00:43]}  Nb4 {[%clk 0:01:35]} 40. Nd4 {[%clk 0:00:41]}  Kd6 {[%clk 0:01:35]} 41. Rc3 {[%clk 0:00:36]}  Rc7 {[%clk 0:01:32]} 42. Ra3 {[%clk 0:00:35]}  Nc2 {[%clk 0:01:33]} 43. Nxc2 {[%clk 0:00:30]}  Rxc2+ {[%clk 0:01:33]} 44. Kd1 {[%clk 0:00:30]}  Rc7 {[%clk 0:01:33]} 45. Rxa5 {[%clk 0:00:30]}  Kc5 {[%clk 0:01:34]} 46. b6+ {[%clk 0:00:28]}  Kxb6 {[%clk 0:01:34]} 47. Rxd5 {[%clk 0:00:28]}  a5 {[%clk 0:01:34]} 48. g4 {[%clk 0:00:27]}  Rf7 {[%clk 0:01:30]} 49. gxf5 {[%clk 0:00:20]}  Rxf5 {[%clk 0:01:27]} 50. Rd7 {[%clk 0:00:19]}  Rh5 {[%clk 0:01:26]} 51. Re7 {[%clk 0:00:18]}  Rxh3 {[%clk 0:01:26]} 52. Rxe4 {[%clk 0:00:19]}  Kb5 {[%clk 0:01:26]} 53. f5 {[%clk 0:00:17]}  gxf5 {[%clk 0:01:25]} 54. Re5+ {[%clk 0:00:18]}  Kb4 {[%clk 0:01:24]} 55. Rxf5 {[%clk 0:00:19]}  a4 {[%clk 0:01:25]} 56. Kc2 {[%clk 0:00:18]}  Rh2+ {[%clk 0:01:25]} 57. Kb1 {[%clk 0:00:19]}  a3 {[%clk 0:01:25]} 58. Rf4+ {[%clk 0:00:19]}  Kc5 {[%clk 0:01:25]} 59. Rf3 {[%clk 0:00:20]}  a2+ {[%clk 0:01:26]} 60. Ka1 {[%clk 0:00:20]}  h5 {[%clk 0:01:26]} 61. Rf5+ {[%clk 0:00:20]}  Kd4 {[%clk 0:01:26]} 62. Rf4+ {[%clk 0:00:21]}  Ke3 {[%clk 0:01:26]} 63. Re4+ {[%clk 0:00:21]}  Kxe4 {[%clk 0:01:26]} 1/2-1/2


[Site "https://www.chess.com"]